{"text_format":"3","workbook":"xlsx","n_sheets":3,"sheets":["开始","礼品预算和跟踪表","数据"],"not_rendered":{"charts":1,"defined_names":1},"read":"whole","date_system":"1900"}

{"sheet":"开始","index":0,"n_rows":7,"n_cols":2,"rows_kept":7}
[null,"关于模板"]
[null,"使用此模板记录礼品购买并根据预算跟踪它们。"]
[null,"在表格中输入亲朋好友的姓名、礼品项、预算和支出金额以及注释，然后选择场合和送礼月份。"]
[null,"每月概述图表会自动更新。"]
[null,"注释： "]
[null,"“礼品预算和跟踪表”工作表的 A 列中提供了其他说明。此文本已被有意隐藏。若要删除文本，请选择 A 列，然后选择“删除”。若要取消隐藏文本，请选择 A 列，然后更改字体颜色。"]
[null,"若要了解有关表格的详细信息，请在表格内按 Shift + F10，选择“表格”选项，然后选择“替换文本”。"]

{"sheet":"礼品预算和跟踪表","index":1,"n_rows":10,"n_cols":13,"rows_kept":10,"merged":[[0,1,0,4],[0,5,0,12],[1,1,1,2],[2,1,2,12],[3,1,3,3]]}
["在此工作表中创建个人礼品预算和跟踪表。工作表的标题位于右侧单元格中，提示位于单元格 F1 中。有关如何使用此工作表的有用说明位于此列的单元格中。","礼品预算和跟踪表",{"$nulls":3},"在每年的新年伊始尽可能多地填写内容。输入亲朋好友的姓名，选择礼物场合，选择送礼月份，然后键入要支出的金额。每个不同场合（生日、假日、送礼会等）的每个人可能会在表格中出现多次。"]
["“每月概述”标签位于单元格右侧，提示位于单元格 D2 中。","每月概述",null,"使用此图查看未来几个月，以便提前做好规划。记录购买记录，根据预算跟踪支出。"]
["预算金额的柱状图与支出金额的折线图叠加在右侧的单元格中。","预算金额的柱状图与支出金额的折线图叠加在此单元格中。"]
["礼品预算和跟踪标签位于右侧的单元格中。","礼品预算和跟踪表"]
["从右侧单元格开始，在“预算跟踪”表格中输入详细信息。","人员","场合","月","金额\n预算","金额\n已花费","礼品","礼品链接","在商店/\n网购","已购买？","已包装？","已发货？","备注"]
[null,"姓名 1","生日","6 月",{"v":50,"d":"¥50"},{"v":30,"d":"¥30"},"鞋","卖家","网购","是","否","否","6/16，电影票"]
[null,"名称 2","纪念日","4 月",{"v":20,"d":"¥20"},{"v":20,"d":"¥20"},"猫","卖家","在商店","否","否","否","他提到他喜欢狗"]
[null,"名称 3","假日","7 月",{"v":50,"d":"¥50"},{"v":70,"d":"¥70"},"耳机","卖家","网购","否","否","否","宿舍用品"]
[null,"姓名 4","生日","1 月",{"v":20,"d":"¥20"},{"v":30,"d":"¥30"},"游戏","卖家","在商店","是","是","是"]
[null,"姓名 5","结婚","6 月",{"v":100,"d":"¥100"},{"v":150,"d":"¥150"},"水晶花瓶","卖家","在商店","是","是","否"]

{"sheet":"数据","index":2,"n_rows":13,"n_cols":8,"rows_kept":13,"hidden":true}
["场合",null,"日期","日期","预算金额\n生日","预算金额\n假日","预算金额\n其他","已支出金额"]
["生日",null,"1 月","1 月",{"$f":"SUMIFS(BudgetTracker[金额\n预算],BudgetTracker[月],\"1 月\",BudgetTracker[场合],\"生日\")","v":{"v":20,"d":"¥20"}},{"$f":"SUMIFS(BudgetTracker[金额\n预算],BudgetTracker[月],\"1 月\",BudgetTracker[场合],\"假日\")","v":{"v":0,"d":"¥0"}},{"$f":"SUMIFS(BudgetTracker[金额\n预算],BudgetTracker[月],\"1 月\",BudgetTracker[场合],\"<>假日\",BudgetTracker[场合],\"<>生日\")","v":{"v":0,"d":"¥0"}},{"$f":"SUMIFS(BudgetTracker[金额\n已花费],BudgetTracker[月],\"1 月\")","v":{"v":30,"d":"¥30"}}]
["假日",null,"2 月","2 月",{"$f":"SUMIFS(BudgetTracker[金额\n预算],BudgetTracker[月],\"2 月\",BudgetTracker[场合],\"生日\")","v":{"v":0,"d":"¥0"}},{"$f":"SUMIFS(BudgetTracker[金额\n预算],BudgetTracker[月],\"2 月\",BudgetTracker[场合],\"假日\")","v":{"v":0,"d":"¥0"}},{"$f":"SUMIFS(BudgetTracker[金额\n预算],BudgetTracker[月],\"2 月\",BudgetTracker[场合],\"<>假日\",BudgetTracker[场合],\"<>生日\")","v":{"v":0,"d":"¥0"}},{"$f":"SUMIFS(BudgetTracker[金额\n已花费],BudgetTracker[月],\"2 月\")","v":{"v":0,"d":"¥0"}}]
["纪念日",null,"3 月","3 月",{"$f":"SUMIFS(BudgetTracker[金额\n预算],BudgetTracker[月],\"3 月\",BudgetTracker[场合],\"生日\")","v":{"v":0,"d":"¥0"}},{"$f":"SUMIFS(BudgetTracker[金额\n预算],BudgetTracker[月],\"3 月\",BudgetTracker[场合],\"假日\")","v":{"v":0,"d":"¥0"}},{"$f":"SUMIFS(BudgetTracker[金额\n预算],BudgetTracker[月],\"3 月\",BudgetTracker[场合],\"<>假日\",BudgetTracker[场合],\"<>生日\")","v":{"v":0,"d":"¥0"}},{"$f":"SUMIFS(BudgetTracker[金额\n已花费],BudgetTracker[月],\"3 月\")","v":{"v":0,"d":"¥0"}}]
["结婚",null,"4 月","4 月",{"$f":"SUMIFS(BudgetTracker[金额\n预算],BudgetTracker[月],\"4 月\",BudgetTracker[场合],\"生日\")","v":{"v":0,"d":"¥0"}},{"$f":"SUMIFS(BudgetTracker[金额\n预算],BudgetTracker[月],\"4 月\",BudgetTracker[场合],\"假日\")","v":{"v":0,"d":"¥0"}},{"$f":"SUMIFS(BudgetTracker[金额\n预算],BudgetTracker[月],\"4 月\",BudgetTracker[场合],\"<>假日\",BudgetTracker[场合],\"<>生日\")","v":{"v":20,"d":"¥20"}},{"$f":"SUMIFS(BudgetTracker[金额\n已花费],BudgetTracker[月],\"4 月\")","v":{"v":20,"d":"¥20"}}]
["新娘送礼会",null,"5 月","5 月",{"$f":"SUMIFS(BudgetTracker[金额\n预算],BudgetTracker[月],\"5 月\",BudgetTracker[场合],\"生日\")","v":{"v":0,"d":"¥0"}},{"$f":"SUMIFS(BudgetTracker[金额\n预算],BudgetTracker[月],\"5 月\",BudgetTracker[场合],\"假日\")","v":{"v":0,"d":"¥0"}},{"$f":"SUMIFS(BudgetTracker[金额\n预算],BudgetTracker[月],\"5 月\",BudgetTracker[场合],\"<>假日\",BudgetTracker[场合],\"<>生日\")","v":{"v":0,"d":"¥0"}},{"$f":"SUMIFS(BudgetTracker[金额\n已花费],BudgetTracker[月],\"5 月\")","v":{"v":0,"d":"¥0"}}]
["婴儿送礼会",null,"6 月","6 月",{"$f":"SUMIFS(BudgetTracker[金额\n预算],BudgetTracker[月],\"6 月\",BudgetTracker[场合],\"生日\")","v":{"v":50,"d":"¥50"}},{"$f":"SUMIFS(BudgetTracker[金额\n预算],BudgetTracker[月],\"6 月\",BudgetTracker[场合],\"假日\")","v":{"v":0,"d":"¥0"}},{"$f":"SUMIFS(BudgetTracker[金额\n预算],BudgetTracker[月],\"6 月\",BudgetTracker[场合],\"<>假日\",BudgetTracker[场合],\"<>生日\")","v":{"v":100,"d":"¥100"}},{"$f":"SUMIFS(BudgetTracker[金额\n已花费],BudgetTracker[月],\"6 月\")","v":{"v":180,"d":"¥180"}}]
["毕业典礼",null,"7 月","7 月",{"$f":"SUMIFS(BudgetTracker[金额\n预算],BudgetTracker[月],\"7 月\",BudgetTracker[场合],\"生日\")","v":{"v":0,"d":"¥0"}},{"$f":"SUMIFS(BudgetTracker[金额\n预算],BudgetTracker[月],\"7 月\",BudgetTracker[场合],\"假日\")","v":{"v":50,"d":"¥50"}},{"$f":"SUMIFS(BudgetTracker[金额\n预算],BudgetTracker[月],\"7 月\",BudgetTracker[场合],\"<>假日\",BudgetTracker[场合],\"<>生日\")","v":{"v":0,"d":"¥0"}},{"$f":"SUMIFS(BudgetTracker[金额\n已花费],BudgetTracker[月],\"7 月\")","v":{"v":70,"d":"¥70"}}]
["其他",null,"8 月","8 月",{"$f":"SUMIFS(BudgetTracker[金额\n预算],BudgetTracker[月],\"8 月\",BudgetTracker[场合],\"生日\")","v":{"v":0,"d":"¥0"}},{"$f":"SUMIFS(BudgetTracker[金额\n预算],BudgetTracker[月],\"8 月\",BudgetTracker[场合],\"假日\")","v":{"v":0,"d":"¥0"}},{"$f":"SUMIFS(BudgetTracker[金额\n预算],BudgetTracker[月],\"8 月\",BudgetTracker[场合],\"<>假日\",BudgetTracker[场合],\"<>生日\")","v":{"v":0,"d":"¥0"}},{"$f":"SUMIFS(BudgetTracker[金额\n已花费],BudgetTracker[月],\"8 月\")","v":{"v":0,"d":"¥0"}}]
[null,null,"9 月","9 月",{"$f":"SUMIFS(BudgetTracker[金额\n预算],BudgetTracker[月],\"9 月\",BudgetTracker[场合],\"生日\")","v":{"v":0,"d":"¥0"}},{"$f":"SUMIFS(BudgetTracker[金额\n预算],BudgetTracker[月],\"9 月\",BudgetTracker[场合],\"假日\")","v":{"v":0,"d":"¥0"}},{"$f":"SUMIFS(BudgetTracker[金额\n预算],BudgetTracker[月],\"9 月\",BudgetTracker[场合],\"<>假日\",BudgetTracker[场合],\"<>生日\")","v":{"v":0,"d":"¥0"}},{"$f":"SUMIFS(BudgetTracker[金额\n已花费],BudgetTracker[月],\"9 月\")","v":{"v":0,"d":"¥0"}}]
[null,null,"10 月","10 月",{"$f":"SUMIFS(BudgetTracker[金额\n预算],BudgetTracker[月],\"10 月\",BudgetTracker[场合],\"生日\")","v":{"v":0,"d":"¥0"}},{"$f":"SUMIFS(BudgetTracker[金额\n预算],BudgetTracker[月],\"10 月\",BudgetTracker[场合],\"假日\")","v":{"v":0,"d":"¥0"}},{"$f":"SUMIFS(BudgetTracker[金额\n预算],BudgetTracker[月],\"10 月\",BudgetTracker[场合],\"<>假日\",BudgetTracker[场合],\"<>生日\")","v":{"v":0,"d":"¥0"}},{"$f":"SUMIFS(BudgetTracker[金额\n已花费],BudgetTracker[月],\"10 月\")","v":{"v":0,"d":"¥0"}}]
[null,null,"11 月","11 月",{"$f":"SUMIFS(BudgetTracker[金额\n预算],BudgetTracker[月],\"11 月\",BudgetTracker[场合],\"生日\")","v":{"v":0,"d":"¥0"}},{"$f":"SUMIFS(BudgetTracker[金额\n预算],BudgetTracker[月],\"11 月\",BudgetTracker[场合],\"假日\")","v":{"v":0,"d":"¥0"}},{"$f":"SUMIFS(BudgetTracker[金额\n预算],BudgetTracker[月],\"11 月\",BudgetTracker[场合],\"<>假日\",BudgetTracker[场合],\"<>生日\")","v":{"v":0,"d":"¥0"}},{"$f":"SUMIFS(BudgetTracker[金额\n已花费],BudgetTracker[月],\"11 月\")","v":{"v":0,"d":"¥0"}}]
[null,null,"12 月","12 月",{"$f":"SUMIFS(BudgetTracker[金额\n预算],BudgetTracker[月],\"12 月\",BudgetTracker[场合],\"生日\")","v":{"v":0,"d":"¥0"}},{"$f":"SUMIFS(BudgetTracker[金额\n预算],BudgetTracker[月],\"12 月\",BudgetTracker[场合],\"假日\")","v":{"v":0,"d":"¥0"}},{"$f":"SUMIFS(BudgetTracker[金额\n预算],BudgetTracker[月],\"12 月\",BudgetTracker[场合],\"<>假日\",BudgetTracker[场合],\"<>生日\")","v":{"v":0,"d":"¥0"}},{"$f":"SUMIFS(BudgetTracker[金额\n已花费],BudgetTracker[月],\"12 月\")","v":{"v":0,"d":"¥0"}}]